Cogmind - Beta 17.1 @@@ ROGUE MODE // 2026.09.02 @ 00:34:34 Player: cd4337 Result: Destroyed by Y-45 Defender with Heavy Assault Rifle Performance ------------- Evolutions (2) 1000 Regions Visited (4) 800 Robots Destroyed (87) 435 Value Destroyed (2880) 2880 Prototype IDs (0) 0 Alien Tech Used (0) 0 Bonus (0) 0 TOTAL SCORE: 5115 Bonus ------- None Cogmind --------- Core Integrity 0/550 Matter 290/300 Energy 155/160 System Corruption 3% Temperature Cool (2) Movement Treading (152) Location -8/Storage Parts ------- > --- POWER (1) -------- Light Nuclear Core > --- PROPULSION (2) --- Light Treads Advanced Treads > --- UTILITY (6) ------ Improved Heat Sink Improved Heat Sink Improved Heat Sink Terrain Scan Processor Light Armor Plating Hacking Suite > --- WEAPON (2) ------- Beam Rifle Heavy Assault Rifle > --- INVENTORY (5) ---- Ion Engine Improved Ion Engine Light Nuclear Core Light Nuclear Core Light Armor Plating Peak State ------------ > --- POWER ------------ Light Nuclear Core > --- PROPULSION ------- Armored Treads Advanced Treads > --- UTILITY ---------- Improved Heat Sink Improved Heat Sink Improved Heat Sink Terrain Scan Processor Light Armor Plating Hacking Suite > --- WEAPON ----------- Particle Gun Heavy Assault Rifle > --- INVENTORY -------- Ion Engine Improved Ion Engine Light Nuclear Core Light Nuclear Core Light Treads [Rating: 29] Favorites ----------- Power Ion Engine Engine Ion Engine Power Core Light Nuclear Core Propulsion Light Treads Treads Light Treads Utility Small Storage Unit Device Improved Heat Sink Storage Small Storage Unit Processor Terrain Scan Processor Hackware Hacking Suite Protection Hardened Light Armor Plating Weapon Small Laser Energy Gun Small Laser Ballistic Gun Heavy Assault Rifle Ballistic Cannon Improved Light Cannon Build | -11 -10 -9 -8 -8 ------- Run | Yrd Mat Mat Mat Sto Slots Evolved 4 | . . 2 2 . Power . | . . . . . Propulsion . | . . . . . Utility 4 | . . 2 2 . Weapon . | . . . . . Parts Attached 55 | 6 5 7 16 21 Power 8 | 1 1 1 2 3 Engine 7 | 1 1 1 2 2 Core 1 | . . . . 1 Reactor . | . . . . . Propulsion 11 | 2 2 . 4 3 Treads 11 | 2 2 . 4 3 Leg . | . . . . . Wheel . | . . . . . Hover . | . . . . . Flight . | . . . . . Utility 19 | 1 1 3 6 8 Device 8 | . 1 1 3 3 Storage 1 | 1 . . . . Processor 1 | . . . . 1 Hackware 1 | . . . 1 . Protection 8 | . . 2 2 4 Artifact . | . . . . . Weapon 17 | 2 1 3 4 7 Energy Gun 10 | 1 1 2 2 4 Energy Cannon . | . . . . . Ballistic Gun 6 | 1 . 1 2 2 Ballistic Cannon 1 | . . . . 1 Launcher . | . . . . . Special Weapon . | . . . . . Impact Weapon . | . . . . . Slashing Weapon . | . . . . . Piercing Weapon . | . . . . . Special Melee Weapon . | . . . . . Unidentified Prototypes . | . . . . . Parts Lost 25 | . 1 2 12 10 Power 1 | . . . 1 . Propulsion 3 | . . . 1 2 Utility 12 | . . 1 5 6 Weapon 9 | . 1 1 5 2 Highest Loss Streak 4 | . 1 1 4 3 To Critical Strikes . | . . . . . Average Backups 6 | 1 5 7 6 7 Power 3 | . 2 3 3 4 Propulsion 2 | . 1 3 2 1 Utility . | . . . . . Weapon 1 | . . 1 . 1 Tool/Special . | . . . . . Unused Backups 5 | . . . 1 4 Power 3 | . . . . 3 Propulsion 2 | . . . 1 1 Utility . | . . . . . Weapon . | . . . . . Tool/Special . | . . . . . Average Slot Usage (%) 91 | . 97 97 82 86 Engine 10 | . 13 11 8 7 Treads 21 | . 27 22 17 17 Device 16 | . 11 19 12 21 Storage 10 | . 14 11 8 6 Hackware 4 | . . . 8 9 Protection 5 | . . 11 8 2 Energy Gun 15 | . 24 21 8 7 Ballistic Gun 5 | . 3 . 9 9 Peak Build Rating 29 | 6 8 15 25 29 Average Rating 15 | 4 7 12 19 23 On Entrance 10 | . 6 8 15 24 Avg Prop Armor Cover (%) 22 | . 22 . . . Naked Turns . | . . . . . Heaviest Build 29 | 12 13 29 29 23 Greatest Support 44 | 40 40 40 44 44 Greatest Overweight (x) 4 | 2 4 . 1 . Average Overweight (x) . | . . . . . Largest Inventory Capacity 8 | 8 8 8 8 8 Average Capacity 7 | 6 8 8 7 7 Most Carried 8 | 5 8 8 8 8 Average Carried 6 | 1 5 7 6 7 Final Capacity 8 | 8 8 8 8 5 Final Carried 8 | 1 8 8 8 5 Class Distribution -------------------- 63% | Mutant 36% | Scavenger-Mutant Dominant Class ---------------- Mutant | -10/Materials Mutant | -9/Materials Scavenger-Mutant | -8/Materials Scavenger-Mutant | -8/Storage Resources | -11 -10 -9 -8 -8 ----------- Run | Yrd Mat Mat Mat Sto Matter Collected 1531 | 250 86 128 333 734 Remotely 123 | . 34 89 . . Salvage Created 3364 | . 601 756 707 1300 Parts 189 | . 36 34 35 84 Haulers Intercepted . | . . . . . Recyclers Shooed 2 | . 1 1 . . Parts Field Recycled . | . . . . . Retrieved Matter . | . . . . . Parts Self-Destructed . | . . . . . Prevented . | . . . . . Parts Restored . | . . . . . Kills | -11 -10 -9 -8 -8 ------- Run | Yrd Mat Mat Mat Sto Combat Hostiles Destroyed 72 | . 11 19 14 28 Guns 63 | . 11 19 12 21 Cannons 7 | . . . . 7 Classes Destroyed 8 | . 6 1 1 . Worker 6 | . 1 1 . 4 Builder 1 | . 1 . . . Recycler 3 | . 2 . . 1 Watcher 5 | . 2 2 1 . Swarmer 10 | . 2 3 . 5 Grunt 43 | . 9 13 8 13 Sentry 17 | . . 3 4 10 Hunter 2 | . . . 2 . Best Kill Streak 13 | . 9 5 3 13 Combat Bots Only 6 | . 6 4 3 5 Max Kills in Single Turn 2 | . 2 2 1 1 Gunslinging 1 | . . 1 . . Exploded . | . . . . . Melee . | . . . . . Uniques/NPCs Destroyed . | . . . . . Combat | -11 -10 -9 -8 -8 -------- Run | Yrd Mat Mat Mat Sto Hostile Shots Fired 510 | . 56 78 143 233 Missed 142 | . 13 21 37 71 Hits 368 | . 43 57 106 162 Projectile 368 | . 43 57 106 162 Critical Strikes 11 | . . 1 5 5 Damage Taken 4934 | . 472 691 1575 2196 Core 812 | . 130 126 195 361 Absorbed by Shields . | . . . . . Regen/Repaired (Parts) 434 | . . 25 271 138 Core Remaining (%) 72 | 100 48 68 . . Volleys Fired 333 | . 67 65 85 116 Largest 2 | . 2 2 2 2 Hottest 100 | . 80 100 88 88 Shots Fired 629 | . 128 126 163 212 Gun 602 | . 128 126 163 185 Cannon 27 | . . . . 27 Launcher . | . . . . . Special . | . . . . . Kinetic 280 | . 45 3 89 143 Thermal 349 | . 83 123 74 69 Explosive . | . . . . . Electromagnetic . | . . . . . Robot Hit Streak 35 | . 11 35 18 14 Robot Miss Streak 8 | . 6 3 3 8 Penetration Max . | . . . . . Secondary Targets 7 | . . 1 3 3 Max Gunslinging Chain 1 | . . 1 1 1 Shots Hit Robots 438 | . 77 97 123 141 Core Hits 181 | . 35 41 42 63 Critical Kills 1 | . . . 1 . Critical Parts Destroyed 2 | . . . 2 . Critical Strikes 18 | . . 6 8 4 Burn 14 | . . 6 5 3 Destroy 3 | . . . 3 . Blast 1 | . . . . 1 Melee Attacks . | . . . . . Impact . | . . . . . Slashing . | . . . . . Piercing . | . . . . . Sneak Attacks . | . . . . . Combat Hostiles . | . . . . . Follow-up Attacks . | . . . . . Damage Inflicted 5980 | . 815 1209 1712 2244 Guns 5533 | . 815 1209 1712 1797 Cannons 447 | . . . . 447 Explosions . | . . . . . Melee . | . . . . . Ramming . | . . . . . Kinetic 2592 | . 231 26 879 1456 Thermal 3388 | . 584 1183 833 788 Explosive . | . . . . . Electromagnetic . | . . . . . Impact . | . . . . . Slashing . | . . . . . Piercing . | . . . . . Highest Corruption 3 | . . . 2 3 Average Corruption 2 | . . . 2 2 Corruption Purged . | . . . . . Corruption Blocked . | . . . . . Effects 15 | . . . 3 12 Message Errors 3 | . . . . 3 Matter Fused 6 | . . . 1 5 Heat Flow Errors 1 | . . . 1 . Energy Discharges 1 | . . . . 1 Parts Rejected 1 | . . . . 1 Data Loss (major) 3 | . . . 1 2 Overload Shots . | . . . . . Overflow Damage . | . . . . . Projectiles . | . . . . . Explosions . | . . . . . Melee . | . . . . . Knockbacks 7 | . . . . 7 Impact . | . . . . . Kinetic 6 | . . . . 6 Secondary 1 | . . . . 1 Self-Inflicted Damage . | . . . . . Shots . | . . . . . Rammed . | . . . . . Targets Rammed . | . . . . . Kicked . | . . . . . Crushed . | . . . . . Highest Temperature 243 | . 243 72 118 57 Average Temperature 47 | . 74 18 15 25 Received Heat Transfer 2106 | . 204 318 585 999 Effects 1 | . 1 . . . Energy Bleed 1 | . 1 . . . Siege Activations . | . . . . . Martial Activations . | . . . . . Shielding Activations . | . . . . . Robots Disrupted . | . . . . . Combat Hostiles . | . . . . . Robots Corrupted . | . . . . . Combat Hostiles . | . . . . . Parts Fried . | . . . . . Impact Corruptions . | . . . . . Robots Melted 2 | . . . 2 . Combat Hostiles 2 | . . . 2 . Parts Melted 18 | . 3 10 3 2 Heat Transferred 9664 | . 1325 3722 2434 2183 Parts Sabotaged . | . . . . . Parts Stolen . | . . . . . Parts Stripped . | . . . . . Power Chain Reactions . | . . . . . Alert | -11 -10 -9 -8 -8 ------- Run | Yrd Mat Mat Mat Sto Maximum Alert Level 1 | . 1 1 . 1 Low Security (%) 90 | 100 97 95 100 72 Level 1 9 | . 2 4 . 27 Level 2 . | . . . . . Level 3 . | . . . . . Level 4 . | . . . . . Level 5 . | . . . . . High Security . | . . . . . Max Security . | . . . . . Peak Influence 268 | . 215 207 91 268 Initial 81 | . . 10 81 13 Average 74 | . 70 80 40 105 Influence Increases 2120 | . 364 569 413 774 Destroy 0b10 Robot/C 1440 | . 220 380 280 560 Destroy 0b10 Robot/NC 75 | . 30 15 5 25 Destroy Leader 350 | . 54 64 82 150 Successful Hack 20 | . . 19 . 1 Disable Machine 15 | . . . 15 . Destroy Structure 10 | . . 1 1 8 Lose Combat Pursuer 210 | . 60 90 30 30 Influence Decreases 1887 | . 339 400 576 572 Entered New Map 146 | . . 15 113 18 Time Decay 1439 | . 329 306 343 461 Lost Part 243 | . 10 20 120 93 Purge Threat 59 | . . 59 . . Squads Dispatched 13 | . 2 3 3 5 Investigation 3 | . . 2 1 . Extermination . | . . . . . Reinforcement 7 | . 2 1 2 2 Assault . | . . . . . Garrison 3 | . . . . 3 Intercept . | . . . . . Searches Triggered . | . . . . . Construction Impeded 1 | . . . . 1 Haulers Reinforced . | . . . . . Active Scanning Responses . | . . . . . Cargo Convoy Interrupts . | . . . . . Stealth | -11 -10 -9 -8 -8 --------- Run | Yrd Mat Mat Mat Sto Distress Signals 9 | . 1 2 1 5 Communications Jammed . | . . . . . Distress Signals . | . . . . . Times Spotted 123 | . 28 33 25 37 Peak Tracking Total 8 | . 8 6 4 6 Tactical Retreats 9 | . 1 4 2 2 Traps | -11 -10 -9 -8 -8 ------- Run | Yrd Mat Mat Mat Sto Traps Triggered 5 | . 1 2 1 1 Indirectly . | . . . . . Trap Hack Attempts . | . . . . . Triggered . | . . . . . Disarmed . | . . . . . Reprogrammed . | . . . . . Reused . | . . . . . Traps Extracted . | . . . . . Installed . | . . . . . Triggered . | . . . . . Machines | -11 -10 -9 -8 -8 ---------- Run | Yrd Mat Mat Mat Sto Machines Disabled 1 | . . . 1 . Max in Single Turn 1 | . . . 1 . Machines Repaired . | . . . . . Machines Dismantled . | . . . . . Machines Sabotaged . | . . . . . Overloaded Fab Kills . | . . . . . Hacking | -11 -10 -9 -8 -8 --------- Run | Yrd Mat Mat Mat Sto Machines Accessed 17 | . 4 5 3 5 Terminals 13 | . 3 4 2 4 Fabricators . | . . . . . Repair Stations 3 | . . 1 1 1 Recycling Units 1 | . 1 . . . Scanalyzers . | . . . . . Garrison Access . | . . . . . Total Hacks 39 | . 7 10 10 12 Successful 17 | . 2 5 6 4 Failed 22 | . 5 5 4 8 Catastrophic 7 | . 2 1 1 3 Database Lockouts . | . . . . . Manual 15 | . 4 2 2 7 Terminals 22 | . 4 7 4 7 Fabricators . | . . . . . Repair Stations 14 | . . 3 6 5 Recycling Units 3 | . 3 . . . Scanalyzers . | . . . . . Garrison Access . | . . . . . Terminal Hacks 3 | . . 3 . . Level Access Points 1 | . . 1 . . Unreport Threat 1 | . . 1 . . Zone Layout 1 | . . 1 . . Fabricator Hacks . | . . . . . Repair Station Hacks 12 | . . 2 6 4 Scan Component 6 | . . 1 3 2 Repair 6 | . . 1 3 2 Recycling Unit Hacks 2 | . 2 . . . Report Inventory 1 | . 1 . . . Retrieve Components 1 | . 1 . . . Scanalyzer . | . . . . . Garrison Access Hacks . | . . . . . Unauthorized Hacks . | . . . . . Terminals . | . . . . . Fabricators . | . . . . . Repair Stations . | . . . . . Recycling Units . | . . . . . Scanalyzers . | . . . . . Garrison Access . | . . . . . Data Cores Recovered . | . . . . . Used . | . . . . . Hacking Detections 16 | . 4 4 3 5 Full Trace Events 2 | . 1 . 1 . Feedback Events . | . . . . . Feedback Blocked . | . . . . . Robot Schematics Acquired . | . . . . . Robots Built . | . . . . . Authchips . | . . . . . Time . | . . . . . Total Robot Build Rating . | . . . . . Part Schematics Acquired . | . . . . . Parts Built . | . . . . . Authchips . | . . . . . Time . | . . . . . Total Part Build Rating . | . . . . . Part Studies Acquired . | . . . . . Parts Repaired 6 | . . 1 3 2 Time 204 | . . 38 90 76 Parts Recycled . | . . . . . Recycled Matter . | . . . . . Retrieved Matter . | . . . . . Retrieved Components 10 | . 10 . . . Parts Scanalyzed . | . . . . . Part Schematics Acquired . | . . . . . Parts Damaged . | . . . . . Bothacking | -11 -10 -9 -8 -8 ------------ Run | Yrd Mat Mat Mat Sto Used RIF Installer . | . . . . . Robots Hacked . | . . . . . Non-combat . | . . . . . Combat . | . . . . . Robot Hacks Applied . | . . . . . Relay Couplers Released . | . . . . . Fabnet Peak Effective % . | . . . . . Robots Rewired . | . . . . . Allies Hacked . | . . . . . Hacks Repelled . | . . . . . Allies | -11 -10 -9 -8 -8 -------- Run | Yrd Mat Mat Mat Sto Total Allies . | . . . . . Largest Group . | . . . . . Highest-Rated Group . | . . . . . Highest-Rated Ally . | . . . . . Total Orders . | . . . . . Ally Attacks . | . . . . . Total Damage . | . . . . . Kills . | . . . . . Allies Corrupted . | . . . . . Allies Melted . | . . . . . Intel | -11 -10 -9 -8 -8 ------- Run | Yrd Mat Mat Mat Sto Active Infowar (turns) . | . . . . . Robot Analysis Total . | . . . . . Derelict Logs Recovered . | . . . . . Drone Launches . | . . . . . Drone Recoveries . | . . . . . Exploration | -11 -10 -9 -8 -8 ------------- Run | Yrd Mat Mat Mat Sto Turns Passed 4617 | 46 1217 1102 1015 1237 Spaces Moved 1553 | 28 496 347 303 379 Core 56 | 11 45 . . . Treads 1497 | 17 451 347 303 379 Legs . | . . . . . Wheels . | . . . . . Hover . | . . . . . Flight . | . . . . . Fastest Speed 50 | 50 160 160 145 145 Average Speed 157 | 123 168 160 147 153 Slowest Speed 250 | 160 250 160 240 157 Overloaded Moves . | . . . . . Propulsion Burnouts . | . . . . . Robots Hopped . | . . . . . Potential Cave-ins . | . . . . . Cave-ins Triggered . | . . . . . Exploration Rate (%) 45 | 3 85 41 30 67 Regions Visited 4 Branch Regions 1 Pre-discovered Areas . | . . . . . Known Exits Taken 1 | . . 1 . . Unknown Exits Taken 3 | 1 1 . 1 . Scrap Searched . | . . . . . Spaces Dug . | . . . . . Terrain Destroyed 1 | . . . . 1 Melee . | . . . . . Projectile 1 | . . . . 1 AOE . | . . . . . Terrain Rammed . | . . . . . Walls Destroyed . | . . . . . Machines Disabled . | . . . . . Actions | -11 -10 -9 -8 -8 --------- Run | Yrd Mat Mat Mat Sto Total 3101 | 39 761 768 711 822 Wait 1094 | . 178 343 284 289 Move 1549 | 27 495 346 302 379 Hop . | . . . . . Pick Up 45 | 6 13 4 17 5 Fast Attach 12 | 1 . 1 3 7 Attach 32 | 5 5 4 11 7 Detach . | . . . . . Swap 19 | . 2 3 4 10 Drop 17 | . 1 2 5 9 Fire 333 | . 67 65 85 116 Melee . | . . . . . Ram . | . . . . . Kick . | . . . . . Crush . | . . . . . Escape Stasis . | . . . . . Rewire . | . . . . . Trap . | . . . . . Miscellaneous . | . . . . . Route ------- -11/Scrapyard -10/Materials (discovered 5 exits: *Mat x2 / [*Min x2] / [*Sub]) -9/Materials (discovered 4 exits: *Mat x3 / [*Min]) -8/Materials -8/Storage History --------- Turn | Location | Event 6 | -11/Scrapyard | Discovered new exit (range 15) 47 | -11/Scrapyard | Entered Materials 295 | -10/Materials | Core integrity fell below 50% 301 | -10/Materials | Build established: Mutant 397 | -10/Materials | Discovered new exit (range 12) 515 | -10/Materials | Discovered new exit (range 16) 682 | -10/Materials | Discovered new exit (range 16) 930 | -10/Materials | Discovered new exit (range 16) 1204 | -10/Materials | Discovered new exit (range 15) 1264 | -10/Materials | Entered another Materials area 1264 | -9/Materials | Evolved 2 slots: Utility x2 1277 | -9/Materials | Identified exit to Materials 1539 | -9/Materials | Discovered new exit (range 12) 2049 | -9/Materials | Repaired Imp. Heat Sink 2366 | -9/Materials | Entered another Materials area 2366 | -8/Materials | Evolved 2 slots: Utility x2 2614 | -8/Materials | Lost 4 parts (1p2u1w) 2796 | -8/Materials | Lost 4 parts (1n1u2w) 2972 | -8/Materials | Repaired Adv. Treads 2999 | -8/Materials | Repaired Sml. Storage Unit 3031 | -8/Materials | Repaired Ion Engine 3077 | -8/Materials | Build established: Scavenger-Mutant 3136 | -8/Materials | Discovered new exit (range 10) 3381 | -8/Materials | Entered Storage 3431 | -8/Storage | Garrison activated, responded to threat 3585 | -8/Storage | Repaired Recoil Stabilizer 3624 | -8/Storage | Repaired Adv. Treads 3646 | -8/Storage | Core integrity fell below 50% 4081 | -8/Storage | Lost 3 parts (2u1w) 4240 | -8/Storage | Core integrity fell below 20% 4346 | -8/Storage | Lost 3 parts (2u1w) 4618 | -8/Storage | Destroyed by Y-45 Defender with Heavy Assault Rifle Last Messages --------------- 04518_ K-01 Serf collects debris. 04519_ Acquired Lgt. Armor Plating. 04521_ K-01 Serf cleans the Terminal. 04523_ Dropped Particle Gun. 04524_ Acquired 20 matter. 04524_ K-01 Serf collects debris. 04531_ K-01 Serf cleans the Terminal. 04536_ Dropped Adv. Treads. 04538_ K-01 Serf collects debris. 04548_ Connecting with Terminal... 04553_ K-01 Serf collects debris. 04576_ K-01 Serf cleans the Terminal. 04578_ K-01 Serf cleans the Transfer Shaft. 04581_ K-01 Serf cleans the Terminal. 04581_ K-01 Serf cleans the Transfer Shaft. 04584_ K-01 Serf cleans the Terminal. 04584_ K-01 Serf cleans the Transfer Shaft. 04588_ K-01 Serf cleans the Terminal. 04588_ K-01 Serf cleans the Transfer Shaft. 04599_ K-01 Serf cleans the Terminal. Map ----- +----------------------------------------------------+ | ????????????????????????# = [ # #??? | | ????????????????????????## # #??? | | ?????????????????????##### "T" # #??? | | ?????????????????????# ######+#### #??? | | ?????????????????????+ + #### | | ?????????????????????# ###### | | ?????????????????????# ## % #!% | | ???????????????????#+# %= [ %+[ " | | ???????????????????#^ =####[##!% #[ " | | ???????????????????# ^ %!####+###=## " | | ???????????????????#^ """ %%/=%%[==# ## | | ???????????????????+ """ [##=|%***#*##### | | ???????????????????# """ "#]*!=[!+%= | | ???????????????????# T#=%!==%#[##### | | ?????????????#% + ^ "#=**== # #???? | | ?????????????####### k""" ## =* # #???? | | ??????????????????#" """ #########%#???? | | ?????????+????????#T """ a #??##+##### | | ?????????# ???????#" r #??# | | ?????????# ######## #??# * | | ?????????# #??# | | ?????????# #??# | | ?????????# #??# | | ?????????+ k a u k #??# | | ?????????# ##### #??# | | ?????????????#### @ #???? #??# | | ????????????????## ###### #?????#??######## | | ?????????????????# ######+##??????????????? | | ?????????????????# # /#??????????????? | | ?????????????????# # #??????????????? | | ?????????????????# # ! !! #??????????????? | | ?????????????????# # #??????????????? | | ?????????????????# # #??????????????? | | ?????????????????# ; #??????????????? | | ?????????????????# # ! #??????????????? | | ?????????????????# #########??????????????? | | ????????????????? ???????????????????????? | | ????????????????? Y???????????????????????? | | ????????????????? ???????????????????????? | | ????????????????? ???????????????????????? | | ?????????????????###???????????????????????? | | ????????????????????? ?????????????????????? | | ?????????????????????"??????? ???????????? | | ???????????????????? ""?????# #??????????? | | ???????????????????? ""?????# #??????????? | | ???????????????????? ?????# #??????????? | | ???????????????????? ??????# #??????????? | | ???????????????????? ??????# +??????????? | | ???????????????????? ??????# #??????????? | | ??????????????????##+######## #??????????? | +----------------------------------------------------+ Best States ------------- Heat Dissipation 73 Energy Generation 14 Energy Capacity 265 Matter Stores 300 Matter Capacity 300 Sight Range 16 Terrain Scan Density 85 Armor Coverage 375 Evasion (%) 50 Recoil Reduction 6 Offensive Hacking 10 Item Schematics ----------------- None Robot Schematics ------------------ None Fabricated ------------ Nothing Repaired ---------- Imp. Heat Sink | 37% | -9/Materials Adv. Treads | 8% | -8/Materials Sml. Storage Unit | 58% | -8/Materials Ion Engine | 11% | -8/Materials Recoil Stabilizer | 4% | -8/Storage Adv. Treads | 32% | -8/Storage Studied --------- None Alien Tech Used ----------------- None Achievements -------------- None Challenges ------------ None Game ------ Seed NeutrinoRainbowGravjet Manual? 0 Play Time 00:41:09 Cumulative 19.9 hours Start 2026.09.01 @ 23:49:20 End 2026.09.02 @ 00:34:34 Sessions 1 Manual Loads 0 Difficulty Rogue Special Mode None Game No. 43 Rogue 43 Adventurer 0 Explorer 0 Win Type - Total 0 Types 0/0/0/0/0/0/0/0/0/0 Lore% 12 Gallery% 14 Achievement% 14 Wizard Run 0 Options --------- Layout 1 ASCII 0 Keyboard 0 Movement Mouse Keybinds 0 Fullscreen 1 Font 32/SmallcapsGlow Map View 50x35 Zoom Use 0% Tactical HUD 1 Map Filters NONE Filters NONE Steam 1 RUN: e2d29f93-e56f-4ad8-8565-e9f4922685f2